[Event "34th MPL National U14-ch 2022"]
[Site "Ahmedabad"]
[Date "2022.05.10"]
[Round "4.5"]
[White "Shaik Sumer Arsh"]
[Black "Anubhav Rawat"]
[Result "1/2-1/2"]
[ECO "A39"]
[WhiteElo "1999"]
[BlackElo "1329"]
[Annotator "TA"]
[PlyCount "124"]
[EventDate "2022.05.09"]
[EventType "swiss"]
[EventCountry "IND"]
[SourceTitle "playchess.com"]
[Source "ChessBase"]
[SourceQuality "1"]
[TimeControl "5400+30"]

{[%evp 19,124,0,30,7,7,7,23,7,7,7,6,0,0,0,0,0,0,0,0,0,23,31,20,26,36,21,8,-6,0,0,0,0,0,7,8,10,41,41,29997,0,54,0,183,0,0,0,0,0,0,0,0,0,0,0,0,0,0,0,0,0,0,0,0,0,8,0,0,0,0,0,0,0,0,0,0,0,0,0,0,0,0,0,0,0,0,0,0,0,0,0,0,0,0,0,0,0,0,0,0,0,0,0,0,0,0,0,0]} 1. c4 {[%emt 0:00:04]} c5 {[%emt 0:00:32]} 2. Nc3 {[%emt 0:00:18]} Nc6 {[%emt 0:00:16]} 3. g3 {[%emt 0:00:11]} Nf6 {[%emt 0:00:13]} 4. Bg2 {[%emt 0:00:26]} g6 {[%emt 0:00:08]} 5. Nf3 {[%emt 0:00:54]} Bg7 {[%emt 0:00:12]} 6. O-O {[%emt 0:00:53]} O-O {[%emt 0:00:19]} 7. d4 {[%emt 0:00:22]} cxd4 {[%emt 0:01:05]} 8. Nxd4 {[%emt 0:00:09]} Nxd4 {[%emt 0:10:26]} 9. Qxd4 {[%emt 0:00:03]} d6 {[%emt 0:02:07]} 10. Qd2 {[%emt 0:10:16]} Rb8 {[%emt 0:16:23]} 11. Rd1 {[%emt 0:13:36][%cal Oc4c5] A39: Symmetrical English vs ...g6: 4 Bg2 Bg7 5 Nf3 Nf6 6 0-0 0-0 7 d4.} Be6 {[%emt 0:19:47]} 12. b3 {[%emt 0:13:05]} a6 {[%emt 0:01:54]} 13. Bb2 {[%emt 0:05:31] White has an edge.} b5 {[%emt 0:01:30]} 14. cxb5 {[%emt 0:01:35]} (14. Nd5 {with more complications.} bxc4 15. Bxf6 Bxf6 16. Nxf6+ exf6 17. bxc4 Bxc4 18. Rac1) 14... axb5 {[%emt 0:00:40]} 15. Nd5 {[%emt 0:01:16]} Bxd5 {[%emt 0:02:16]} 16. Bxd5 {[%emt 0:01:12]} Nxd5 {[%emt 0:00:53]} 17. Bxg7 {[%emt 0:00:03]} Kxg7 {[%emt 0:00:35]} 18. Qxd5 {[%emt 0:00:03]} Qb6 {[%emt 0:02:48] [#]} 19. Qe4 $146 {[%emt 0:05:54]} ({Predecessor:} 19. Rac1 Rfc8 20. h4 h5 21. Qe4 e6 22. Rxc8 Rxc8 23. Qd4+ Qxd4 24. Rxd4 d5 25. e4 dxe4 26. Rxe4 {½-½ (41) Pushkarjow,A (2255)-Meribanov,V (2370) Minsk 2015}) 19... e6 {[%emt 0:09:01]} 20. a4 {[%emt 0:07:23]} bxa4 {[%emt 0:01:02]} 21. bxa4 {[%emt 0:00:01]} d5 {[%emt 0:02:29]} 22. Qd3 {[%emt 0:02:11]} Qa5 {[%emt 0:06:56]} 23. h4 {[%emt 0:36:34][%cal Oh4h5]} h5 {[%emt 0:01:02]} 24. Qd4+ {[%emt 0:00:00]} Kg8 {[%emt 0:01:25]} 25. Rab1 {[%emt 0:00:00] Inhibits Rb4.} Rxb1 {[%emt 0:07:25]} 26. Rxb1 $11 {[%emt 0:00:00][%mdl 4096] Endgame KQR-KQR} Rc8 {[%emt 0:00:21]} 27. Kg2 {[%emt 0:00:00]} Qc3 {[%emt 0:02:40]} 28. Qxc3 {[%emt 0:00:00]} Rc7 {[%emt 0:10:05][%mdl 8192] [#]} (28... Rxc3 $14 29. Ra1 Kf8) 29. Qc4 $2 Rxc4 {[%emt 0:00:00] KR-KR} ({Black should try} 29... dxc4 $11 30. Kf3 c3) 30. a5 {[%emt 0:00:00]} (30. Ra1 $1 $14) 30... Rc3 $2 {[%emt 0:00:00]} (30... Ra4 $11) 31. Rb7 $2 {[%emt 0:04:00]} (31. Ra1 $18) 31... Ra3 {The position is equal.} 32. Rb8+ {[%emt 0:00:00]} Kg7 {[%emt 0:00:00]} 33. Ra8 {[%emt 0:00:00]} e5 {[%emt 0:00:00]} 34. a6 {[%emt 0:00:00]} d4 {[%emt 0:00:00]} 35. a7 {[%emt 0:00:00]} Kf6 {[%emt 0:00:00]} 36. f3 {[%emt 0:00:00]} Kg7 {[%emt 0:00:00]} 37. Kf2 {[%emt 0:00:00]} Ra1 {[%emt 0:01:38]} 38. Kg2 {[%emt 0:00:00]} f6 {[%emt 0:00:18]} 39. Kf2 {[%emt 0:00:00]} Kh7 {[%emt 0:00:24]} 40. g4 {[%emt 0:01:15]} hxg4 {[%emt 0:01:57]} 41. fxg4 {[%emt 0:00:02]} f5 {[%emt 0:01:08]} 42. gxf5 {[%emt 0:03:06]} gxf5 {[%emt 0:00:07]} 43. Re8 {[%emt 0:00:05]} Rxa7 {[%emt 0:00:05]} 44. Rxe5 {[%emt 0:00:02]} Kg6 {[%emt 0:00:54]} 45. Rd5 {[%emt 0:01:41]} Ra4 {[%emt 0:00:45]} 46. Kg3 {[%emt 0:00:28]} Rb4 {[%emt 0:00:36]} 47. Rd8 {[%emt 0:00:44]} Rb3+ {[%emt 0:00:54]} 48. Kf4 {[%emt 0:00:26]} Rh3 {[%emt 0:00:31]} 49. Rd6+ {[%emt 0:00:21]} Kf7 {[%emt 0:00:26]} 50. Kg5 {[%emt 0:00:47]} Re3 {[%emt 0:00:41]} 51. Rxd4 {[%emt 0:00:16]} Rxe2 {[%emt 0:00:13]} 52. Kxf5 {[%emt 0:00:13]} Rf2+ {[%emt 0:00:21]} 53. Kg5 {[%emt 0:00:03]} Kg7 {[%emt 0:01:32]} 54. Rd7+ {[%emt 0:00:35]} Rf7 {[%emt 0:00:30]} 55. Rd4 {[%emt 0:00:48]} Ra7 {[%emt 0:00:00]} 56. Rd5 {[%emt 0:00:10]} Kh7 {[%emt 0:00:00]} 57. h5 {[%emt 0:01:13]} Rg7+ {[%emt 0:00:00]} 58. Kh4 {[%emt 0:00:37]} Ra7 {[%emt 0:00:09]} 59. Rf5 {[%emt 0:00:21]} Rg7 {[%emt 0:00:17]} 60. Rf6 {[%emt 0:00:39]} Ra7 {[%emt 0:00:12]} 61. h6 {[%emt 0:00:31]} Ra4+ {[%emt 0:00:05]} 62. Kg5 {[%emt 0:00:10]} Ra5+ {[%emt 0:00:05] Weighted Error Value: White=0.21 (precise) /Black=0.21 (precise)} 1/2-1/2

[Event "34th MPL National U14-ch 2022"]
[Site "Ahmedabad"]
[Date "2022.05.10"]
[Round "4.6"]
[White "Bagwe Gaurang"]
[Black "Sahib Singh"]
[Result "1/2-1/2"]
[ECO "C06"]
[WhiteElo "1789"]
[BlackElo "1991"]
[Annotator "TA"]
[PlyCount "195"]
[EventDate "2022.05.09"]
[EventType "swiss"]
[EventCountry "IND"]
[SourceTitle "playchess.com"]
[Source "ChessBase"]
[SourceQuality "1"]
[TimeControl "5400+30"]

{[%evp 25,194,27,26,0,57,39,81,68,92,87,94,76,83,-9,135,67,93,63,120,116,113,0,65,0,56,36,120,-64,-63,-65,-8,-13,-28,-23,100,50,58,52,68,-20,-14,-19,0,0,10,-51,-54,-337,-360,-360,-360,-360,-360,-360,-360,-359,-355,-350,-350,-339,-287,-291,-291,-287,-256,-280,-278,-265,-265,-267,-192,-192,-192,-208,0,-185,0,-210,0,-216,-212,-260,-244,-185,-185,-236,-185,-434,-418,-414,-422,-302,-295,-529,-530,-533,-521,-472,-448,-430,-424,-636,-625,-29980,-29981,-29989,-29990,-29990,-29991,-29991,-29965,-1875,-325,-327,-210,-29973,-29975,-29973,-29975,-29975,-29971,-29962,-29965,-29964,-29965,-29960,-29964,-29960,-29960,-29961,-29959,-6841,0,-4562,0,0,0,0,0,0,0,0,0,0,0,0,0,0,0,0,0,0,0,0,0,0,0,0,0,0,0,0,0,0,0,0,0,-8,0,0,0]} 1. e4 {[%emt 0:00:01]} e6 {[%emt 0:00:04]} 2. d4 {[%emt 0:00:02]} d5 {[%emt 0:00:04]} 3. Nd2 {[%emt 0:00:02]} Nf6 {[%emt 0:00:06]} 4. e5 {[%emt 0:00:01]} Nfd7 {[%emt 0:00:05]} 5. Bd3 {[%emt 0:00:04]} c5 {[%emt 0:00:03]} 6. c3 {[%emt 0:00:03]} Nc6 {[%emt 0:00:03]} 7. Ne2 {[%emt 0:00:07]} cxd4 {[%emt 0:00:03]} 8. cxd4 {[%emt 0:00:04]} f6 {[%emt 0:00:04]} 9. exf6 {[%emt 0:00:05]} Nxf6 {[%emt 0:00:06]} 10. O-O {[%emt 0:00:08]} Bd6 {[%emt 0:00:03]} 11. f4 {[%emt 0:00:03]} O-O {[%emt 0:00:12]} 12. Nf3 {[%emt 0:00:09]} Qb6 {[%emt 0:16:45]} 13. Kh1 {[%emt 0:00:24]} Bd7 {[%emt 0:00:47]} 14. a3 {[%emt 0:00:23] C06: French Tarrasch: 3...Nf6 4 e5 Nfd7 5 Bd3 main lines.} (14. Ne5 Bxe5 15. fxe5 Ne4 16. Bxe4 dxe4 $15) 14... a5 {[%emt 0:06:56]} (14... Ne7 $11) 15. Nc3 $14 {[%emt 0:00:55] [#]} (15. Ne5 Bxe5 16. fxe5 Ne4 17. Bxe4 Rxf1+ 18. Qxf1 dxe4 $15) 15... g6 $146 {[%emt 0:10:07]} ({Predecessor:} 15... Rae8 16. Ne5 Re7 17. Be3 Be8 18. Qd2 Bh5 19. h3 Nd7 20. Na4 Qa7 21. Nxc6 bxc6 {0-1 (48) Alonso Garcia,R (2397)-Larino Nieto,D (2451) Pamplona 2010}) 16. Ne5 {[%emt 0:14:16] White is better.} Bxe5 {[%emt 0:19:34]} (16... Nxd4 17. Nxd7 (17. Be3 Be8 $16) 17... Nxd7 18. Be3 $16) 17. dxe5 {[%emt 0:05:59]} (17. fxe5 Nh5 $11) 17... Nh5 {[%emt 0:07:24]} 18. Rf3 {[%emt 0:04:26]} Ne7 {[%emt 0:07:37]} 19. Be3 {[%emt 0:18:16]} (19. g4 $16 Ng7 20. Rb1) 19... Qd8 {[%emt 0:05:14]} (19... Qxb2 20. Ne2 Ba4 21. Qe1 $16) (19... d4 $11 {remains equal.} 20. Bg1 Bc6) 20. Bc2 {[%emt 0:13:44]} (20. Ne2 $16) 20... Bc6 {[%emt 0:01:50][%cal Od5d4]} 21. Qd4 {[%emt 0:00:20]} Be8 {[%emt 0:02:21]} (21... Nf5 $14 22. Bxf5 Rxf5) 22. Rd1 {[%emt 0:02:51]} Rc8 {[%emt 0:02:37]} 23. Qa7 {[%emt 0:06:11]} ({White should try} 23. Qd2 $16) 23... Bc6 {[%emt 0:09:43]} (23... Rf7 $1 $11) 24. Qd4 {[%emt 0:12:43] 0x0.0016305af5b0dp-1022s more active pieces.} (24. Kg1 $14) 24... Ng7 {[%emt 0:02:44]} (24... Be8 $1 $11) 25. g4 {[%emt 0:02:16]} Bd7 {[%emt 0:01:18]} (25... b5 $1 $14) 26. Ba4 $2 {[%emt 0:01:32]} ({White should play} 26. Qd2 $16) 26... b5 $1 $15 {[%emt 0:04:05]} 27. Bxb5 {[%emt 0:00:43] [#]} (27. Nxb5 $2 Rc4 28. Qd2 Rxa4 $19) 27... Bxb5 {[%emt 0:00:07]} (27... Rxc3 $1 $15 28. Bxd7 Rxe3 29. Qxe3 (29. Bxe6+ Nxe6 30. Qxe3 Qa8 $15) 29... Qxd7) 28. Nxb5 $11 {[%emt 0:00:12] Threatens to win with Qd2.} Nc6 $1 {[%emt 0:00:04][%cal Be7c6,Bc6e5,Be5g4][%mdl 32]} 29. Qc3 {[%emt 0:05:01]} Qh4 {[%emt 0:04:06]} (29... d4 $1 $11 30. Qc5 (30. Nxd4 Nxe5 31. Qe1 Qd5 $17) 30... Qh4 31. Nxd4 Nxd4 32. Qxd4 Qxg4) 30. Rg3 {[%emt 0:04:24]} (30. Bc5 $1 $16 {[%cal Rc5f8]} Nxe5 31. fxe5 (31. Qxe5 Rxc5 32. Nd4 Qxg4 $11) 31... Rxf3 32. Qxf3 Rxc5 33. Nd6) 30... d4 $1 $14 {[%emt 0:00:13]} 31. Nxd4 {[%emt 0:03:06]} Nxe5 {[%emt 0:00:05]} 32. Qb3 {[%emt 0:00:45]} (32. Qxa5 $14 Nxg4 33. Nf3) 32... Nxg4 {[%emt 0:00:18][%csl Gg4][%cal Rh4h2]} 33. Bg1 {[%emt 0:00:57]} Rb8 {[%emt 0:00:52]} 34. Qf3 {[%emt 0:01:06]} h5 {[%emt 0:00:52]} 35. Qe2 {[%emt 0:02:52]} (35. Rd2 $11) 35... Rxf4 $40 {[%emt 0:00:25][%mdl 128] Black mounts an attack.} 36. Nxe6 {[%emt 0:01:00][%mdl 8192] [#]} (36. Rf3 $15 Rbf8 37. Rdf1 (37. Rxf4 Rxf4 38. Nf3 Qf6 $17) 37... Rxf3 38. Rxf3) 36... Re4 $3 $19 {[%emt 0:00:11][%mdl 512]} 37. Rxg4 {[%emt 0:02:14]} (37. Qxe4 $2 Nf2+ $1 {[%mdl 512]} 38. Bxf2 Qxe4+ 39. Kg1 Nxe6 $19) (37. Rd8+ $2 Rxd8 38. Rxg4 Rxe2 $19) 37... Qxg4 {[%emt 0:00:04]} (37... Rxe2 38. Rxh4 Nxe6 39. b4 $15) 38. Qxg4 {[%emt 0:00:30]} Rxg4 {[%emt 0:00:19]} (38... hxg4 $2 {too greedy.} 39. Nxg7 Kxg7 40. Bd4+ Kh6 41. Rd2 $19) 39. Nxg7 {[%emt 0:01:14]} Kxg7 {[%emt 0:00:05][%mdl 4096] Endgame KRR-KRB} 40. Bd4+ {[%emt 0:00:06]} Kf7 {[%emt 0:00:08]} 41. Rf1+ {[%emt 0:01:08]} Ke7 {[%emt 0:00:05]} 42. Bc3 {[%emt 0:00:02]} Rb3 {[%emt 0:00:37]} 43. h3 {[%emt 0:00:33]} Re4 {[%emt 0:00:16]} 44. Rg1 {[%emt 0:00:16]} Re6 {[%emt 0:00:30]} 45. Rg5 {[%emt 0:00:13]} a4 {[%emt 0:00:10]} 46. Ra5 {[%emt 0:00:21]} Re4 {[%emt 0:00:06]} 47. Ra6 {[%emt 0:00:14]} Re3 {[%emt 0:01:54]} 48. Kg2 {[%emt 0:01:20]} Re2+ {[%emt 0:02:21]} 49. Kg1 {[%emt 0:00:04]} Re3 {[%emt 0:00:45]} 50. Kg2 $1 {[%emt 0:00:17]} Re2+ {[%emt 0:00:08]} 51. Kg1 {[%emt 0:00:05]} Re4 $2 {[%emt 0:00:00]} (51... Rb5 $19 {Hoping for ...Rd5.} 52. Ra7+ Ke6 53. Ra6+ Kf5 54. Rxa4 Rd5) 52. Rxg6 $2 {[%emt 0:00:40]} (52. Kh1 $1 $11) 52... Rb5 {[%emt 0:00:31]} 53. Ra6 {[%emt 0:01:20]} Rg5+ {[%emt 0:00:38]} 54. Kf2 {[%emt 0:01:00]} Rf5+ {[%emt 0:00:04]} 55. Kg2 {[%emt 0:00:03]} (55. Kg1 $142) 55... h4 {[%emt 0:00:25]} 56. Ra7+ $2 {[%emt 0:00:32]} (56. Bb4+ Kd8 57. Rxa4 Re2+ 58. Kg1) 56... Ke6 {[%emt 0:00:13]} 57. Ra6+ {[%emt 0:00:15]} Kf7 {[%emt 0:00:14]} 58. Ra7+ {[%emt 0:00:28]} Kg6 {[%emt 0:00:11] And now ...Re2+ would win.} 59. Ra6+ $2 {[%emt 0:00:06]} (59. Rg7+ {was the only defense.} Kh6 60. Rd7) 59... Kh5 {[%emt 0:00:04]} 60. Ra8 {[%emt 0:00:28]} Re2+ {[%emt 0:00:48]} 61. Kg1 {[%emt 0:00:11]} Rf3 {[%emt 0:01:15]} 62. Ra5+ {[%emt 0:00:53]} Kg6 {[%emt 0:00:05]} 63. Ra6+ {[%emt 0:00:21]} (63. Rxa4 $142 Rxh3 64. Rf4) 63... Kg5 {[%emt 0:00:26]} 64. Ra5+ {[%emt 0:00:06] [#]} Kf4 $1 {[%emt 0:00:16]} 65. Rxa4+ {[%emt 0:02:14]} Kg3 {[%emt 0:00:05]} 66. Rg4+ {[%emt 0:00:28]} Kxh3 {[%emt 0:00:05]} 67. Rg7 {[%emt 0:00:14]} Rg3+ {[%emt 0:02:07]} 68. Kf1 {[%emt 0:00:01]} Re4 $2 {[%emt 0:00:50]} (68... Rxg7 69. Bxg7 Re4) 69. Rf7 {[%emt 0:00:24]} Kg4 {[%emt 0:01:11] ( -> ...Rf4+)} 70. Rg7+ $2 {[%emt 0:00:20]} (70. Kf2 $19) 70... Kf3 {[%emt 0:00:04]} 71. Rh7 {[%emt 0:00:33]} Ke3 {[%emt 0:00:22]} 72. Rf7 {[%emt 0:00:38]} h3 {[%emt 0:00:05]} 73. Be1 {[%emt 0:00:15]} Rf3+ {[%emt 0:01:14]} 74. Bf2+ {[%emt 0:00:36] [#]} Rxf2+ $1 {[%emt 0:00:06][%mdl 512]} 75. Rxf2 {[%emt 0:00:02] KR-KR} Rc4 {[%emt 0:00:13][%cal Rc4c1]} (75... Rf4 $2 76. Rxf4 Kxf4 77. b4 $18) 76. Re2+ {[%emt 0:00:21] [#]} Kf3 $1 {[%emt 0:00:03]} ({Less strong is} 76... Kd3 77. Rh2 $14) 77. Rf2+ {[%emt 0:00:04]} Kg3 {[%emt 0:00:04]} 78. Rf8 {[%emt 0:00:26]} Rc1+ {[%emt 0:00:20]} 79. Ke2 {[%emt 0:00:03]} Rc2+ $2 {[%emt 0:00:47]} (79... h2 $19 80. Rh8 Kf4) 80. Ke3 $11 {[%emt 0:00:14] The position is equal.} Rxb2 {[%emt 0:00:12]} 81. Rg8+ {[%emt 0:00:09]} Kh2 {[%emt 0:00:05]} 82. Kf3 {[%emt 0:00:48]} Kh1 {[%emt 0:00:56]} 83. Rh8 {[%emt 0:00:27]} Rb3+ {[%emt 0:01:02]} 84. Kf2 {[%emt 0:00:08]} Rxa3 {[%emt 0:00:59]} 85. Rh7 {[%emt 0:00:22]} Kh2 {[%emt 0:00:05]} 86. Rh8 {[%emt 0:00:11]} Ra2+ {[%emt 0:00:19]} 87. Kf1 {[%emt 0:00:06]} Ra7 {[%emt 0:00:54]} (87... Kg3 88. Rg8+ Kh2 89. Rd8 $11) 88. Rf8 {[%emt 0:00:15]} Rg7 {[%emt 0:00:05]} 89. Kf2 $1 {[%emt 0:00:06]} Rg2+ {[%emt 0:00:23]} 90. Kf1 {[%emt 0:00:05]} Rg3 {[%emt 0:00:27]} 91. Kf2 {[%emt 0:00:12]} Ra3 {[%emt 0:00:05]} 92. Rf7 {[%emt 0:00:15]} Ra2+ {[%emt 0:00:35]} 93. Kf1 {[%emt 0:00:04]} Ra1+ {[%emt 0:00:04]} 94. Kf2 {[%emt 0:00:02]} Kh1 {[%emt 0:00:04]} 95. Rf8 {[%emt 0:00:07]} Ra2+ {[%emt 0:00:25]} 96. Kf1 {[%emt 0:00:05]} h2 {[%emt 0:00:09]} 97. Rf7 {[%emt 0:00:05]} Rf2+ {[%emt 0:00:16]} 98. Kxf2 {[%emt 0:00:40] Whites escaped into a draw.  Weighted Error Value: White=0.49/Black=0.32} 1/2-1/2

[Event "34th MPL National U14-ch 2022"]
[Site "Ahmedabad"]
[Date "2022.05.10"]
[Round "4.7"]
[White "Snehil Raj Singh"]
[Black "Koustuv Dash"]
[Result "0-1"]
[ECO "B15"]
[WhiteElo "1545"]
[BlackElo "1910"]
[Annotator "TA"]
[PlyCount "100"]
[EventDate "2022.05.09"]
[EventType "swiss"]
[EventCountry "IND"]
[SourceTitle "playchess.com"]
[Source "ChessBase"]
[SourceQuality "1"]
[TimeControl "5400+30"]

{[%evp 15,100,18,22,13,16,2,51,0,0,0,0,0,0,-14,-10,-13,0,-30,0,0,0,-161,-50,-143,-141,-240,-234,-239,-227,-239,-232,-273,-249,-258,-243,-322,-300,-298,-291,-319,-307,-322,-314,-500,-459,-517,-281,-318,-289,-704,-693,-681,-648,-625,-592,-1653,60,-1643,-1664,-1599,-1650,-1650,-1425,-1608,-1546,-2023,-2005,-3066,-3066,-3052,-3052,-4791,-4483,-4102,-3846,-29974,-1947,-29976,-29977,-29988,-29977,-29979,-29980,-29981,-29981,-29981,-29978]} 1. e4 {[%emt 0:00:31]} c6 {[%emt 0:00:29]} 2. d4 {[%emt 0:00:11]} d5 {[%emt 0:00:05]} 3. Nc3 {[%emt 0:00:04]} dxe4 {[%emt 0:00:05]} 4. Nxe4 {[%emt 0:00:04]} Nf6 {[%emt 0:00:07]} 5. Nxf6+ {[%emt 0:00:05]} exf6 {[%emt 0:00:06]} 6. c3 {[%emt 0:00:52]} Bd6 {[%emt 0:00:05]} 7. Bd3 {[%emt 0:00:11]} O-O {[%emt 0:00:06]} 8. Ne2 {[%emt 0:00:10]} Re8 {[%emt 0:00:07]} 9. O-O {[%emt 0:00:10] B15: Caro-Kann: 3 Nc3: 3...g6 and 3...dxe4 4 Nxe4 Nf6 5 Nxf6+ exf6.} Na6 {[%emt 0:01:25]} 10. Qc2 {[%emt 0:01:33]} h5 {[%emt 0:00:23] [#]} (10... g6 $11 {should be considered.}) 11. b4 $146 {[%emt 0:00:53]} ({White should play} 11. Bd2 $14) ({Predecessor:} 11. Re1 Nc7 12. Bf4 Bg4 13. Bxd6 Qxd6 14. Ng3 h4 15. Ne4 Qd5 16. f3 Bh5 17. Qf2 {1-0 (50) Beshirli,N (2688)-Sunilduth Lyna,N (2626) Chess.com INT 2019}) 11... h4 {[%emt 0:00:55]} 12. h3 {[%emt 0:03:46]} Nc7 {[%emt 0:00:53]} 13. Bd2 {[%emt 0:05:37]} Nd5 {[%emt 0:02:14]} 14. Rfe1 {[%emt 0:05:33]} Be6 {[%emt 0:02:33]} 15. Bh7+ {[%emt 0:07:00]} Kh8 {[%emt 0:03:55]} 16. Bf5 {[%emt 0:00:09]} g6 {[%emt 0:03:49]} 17. Bxe6 {[%emt 0:00:22]} Rxe6 {[%emt 0:00:02]} 18. Nc1 $2 {[%emt 0:06:29]} (18. c4 $11 {and White has nothing to worry.} Ne7 19. Rac1) 18... Rxe1+ $19 {[%emt 0:03:49]} 19. Bxe1 {[%emt 0:00:03]} Bc7 $1 {[%emt 0:00:58] Threatens to win with ...Qd6. Black is more active.} 20. Qd2 {[%emt 0:14:00]} (20. Qe4 $17 {was called for.}) 20... Qd6 $1 {[%emt 0:03:13] ( -> ...Qh2+)} 21. g3 {[%emt 0:00:22]} Kg7 $40 {[%emt 0:02:47][%cal Rh4g3][%mdl 128] Inhibits Qh6+. Black attacks with force.} 22. c4 {[%emt 0:16:57]} Ne7 {[%emt 0:00:17][%cal Rh4g3]} (22... hxg3 23. cxd5 gxf2+ 24. Qxf2 $15) 23. Ne2 {[%emt 0:01:50]} hxg3 {[%emt 0:00:26]} 24. fxg3 {[%emt 0:01:07]} Qe6 {[%emt 0:00:26]} 25. Kh2 {[%emt 0:04:38]} Rh8 {[%emt 0:00:45]} 26. Ng1 {[%emt 0:00:09]} Qxc4 {[%emt 0:00:15]} 27. Rc1 {[%emt 0:01:51]} Qe6 {[%emt 0:00:32]} 28. Bf2 {[%emt 0:00:19]} Nf5 {[%emt 0:01:54]} 29. b5 {[%emt 0:01:21]} (29. Rc3 $142) 29... Nh4 {[%emt 0:00:47][%cal Oh4f3]} 30. d5 {[%emt 0:07:39]} Qd7 {[%emt 0:11:39][%cal Oh4f3]} ({And not} 30... Nf3+ 31. Kg2 Qf5 32. Qc2 $17) 31. bxc6 {[%emt 0:04:17]} bxc6 {[%emt 0:00:15][%cal Oh4f3] Hoping for ...Nf3+!} ({Not} 31... Nf3+ 32. Kg2 bxc6 33. Kxf3 $16) 32. Qc3 {[%emt 0:09:59] Against Nf3+} ({Don't blunder} 32. Rxc6 $2 Nf3+ $1 {[%mdl 512]} 33. Kg2 Nxd2 $19) (32. Qd3) 32... Qxd5 {[%emt 0:10:59][%csl Gh4][%cal Rd5g2]} 33. Qxc6 {[%emt 0:00:19]} Qd2 {[%emt 0:00:08] Strongly threatening ...Rc8.} 34. Rc2 {[%emt 0:02:57] [#]} Bxg3+ $1 {[%emt 0:00:29][%mdl 512]} 35. Kxg3 {[%emt 0:00:19] [#]} (35. Kh1 Qf4) 35... Qg5+ {[%emt 0:00:13]} 36. Kh2 {[%emt 0:00:10] [#] White does not recover from this.} Rc8 $1 {[%emt 0:00:16][%mdl 576] Skewer} 37. Bxh4 {[%emt 0:06:24]} Qe5+ {[%emt 0:01:46]} 38. Bg3 {[%emt 0:00:37]} Rxc6 {[%emt 0:00:02]} 39. Rf2 {[%emt 0:00:27]} Qe4 {[%emt 0:00:28]} 40. Nf3 {[%emt 0:00:27]} Rc2 {[%emt 0:00:18]} 41. Kg2 {[%emt 0:00:29]} Rxf2+ {[%emt 0:00:08]} 42. Bxf2 {[%emt 0:00:03]} Qa4 {[%emt 0:00:26]} 43. Bd4 {[%emt 0:00:19]} Qxa2+ {[%emt 0:00:06]} 44. Kg3 {[%emt 0:00:04]} a5 {[%emt 0:00:14][%cal Ba7a5,Ba5a4,Ba4a3,Ba3a2][%mdl 32]} 45. h4 {[%emt 0:00:21]} Qd5 {[%emt 0:00:18]} (45... Qe2 $142 46. Ng1 Qd3+ 47. Nf3 a4 48. Kg4 a3 49. Kg3 Qe2 50. Kf4 a2 51. Kg3 Qf1 52. Bc3 Qd1 53. Bd4 Qf1 54. Kf4 a1=Q 55. Bxa1 Qxa1 56. h5 gxh5 57. Ke4 Qb1+ 58. Kd4 f5 59. Kc3 Qc1+ 60. Kd3 Qf1+ 61. Ke3 Qb1 62. Kd2 Qe4 63. Ne1 h4 64. Nd3 h3 65. Nf2 Qf4+ 66. Ke1 Qe3+ 67. Kf1 Qf3 68. Ke1 h2 69. Kd2 Qxf2+ 70. Kd3 h1=Q 71. Kc3 Qc6+ 72. Kb3 Qfc2+ 73. Kb4 Q6c5#) 46. Ba1 {[%emt 0:00:16]} a4 {[%emt 0:00:04] Black mates.} 47. Ng5 {[%emt 0:00:07]} Qd3+ {[%emt 0:00:28]} 48. Nf3 {[%emt 0:00:07]} a3 {[%emt 0:00:06]} 49. Kg2 {[%emt 0:00:24]} a2 {[%emt 0:00:05]} 50. Kg3 {[%emt 0:00:16]} Qb1 {[%emt 0:00:09] Weighted Error Value: White=1.06/Black=0.18 (very precise)} 0-1

[Event "34th MPL National U14-ch 2022"]
[Site "Ahmedabad"]
[Date "2022.05.10"]
[Round "4.8"]
[White "Ankit Ray"]
[Black "Samyak Dharewa"]
[Result "1/2-1/2"]
[ECO "E06"]
[WhiteElo "1932"]
[BlackElo "1586"]
[Annotator "TA"]
[PlyCount "71"]
[EventDate "2022.05.09"]
[EventType "swiss"]
[EventCountry "IND"]
[SourceTitle "playchess.com"]
[Source "ChessBase"]
[SourceQuality "1"]
[TimeControl "5400+30"]

{[%evp 17,71,4,6,-4,26,-22,-16,-14,-2,-56,-13,-56,-56,-54,-52,-48,-46,-75,-45,-62,-47,-113,-106,-99,-71,-75,-73,-71,-70,-83,-96,-77,-93,-95,-92,-77,-67,-134,-114,-124,-122,-137,-97,-97,0,0,0,0,0,-7,0,0,0,0,0,0]} 1. d4 {[%emt 0:00:03]} Nf6 {[%emt 0:00:08]} 2. c4 {[%emt 0:00:56]} e6 {[%emt 0:00:06]} 3. g3 {[%emt 0:00:38]} d5 {[%emt 0:00:20]} 4. Bg2 {[%emt 0:00:10]} Be7 {[%emt 0:00:03]} 5. Nf3 {[%emt 0:00:19]} O-O {[%emt 0:00:06]} 6. O-O {[%emt 0:02:48]} c6 {[%emt 0:00:01]} 7. Qc2 {[%emt 0:01:11]} b6 {[%emt 0:00:16]} 8. Nbd2 {[%emt 0:00:48]} Bb7 {[%emt 0:00:12]} 9. e4 {[%emt 0:01:21]} Na6 {[%emt 0:00:07][%cal Bb8a6,Ba6c5,Bc5d3][%mdl 32]} 10. a3 $1 {[%emt 0:05:27] 10.a3 scores better than 10.e5. E06: Closed Catalan: Early deviations.} Rc8 {[%emt 0:14:43]} 11. b3 {[%emt 0:10:07]} (11. b4 $142) 11... c5 $11 {[%emt 0:13:27][%cal Rd5e4]} 12. exd5 {[%emt 0:00:30]} exd5 {[%emt 0:00:36] [#]} 13. dxc5 $146 {[%emt 0:04:47]} (13. Bb2 $11) ({Predecessor:} 13. Bb2 dxc4 14. Nxc4 cxd4 15. Qf5 Be4 16. Qh3 d3 17. Rfe1 Nc5 18. Rad1 Bg6 19. Nce5 {0-1 (33) Babiy,I (2243)-Shagbazyan,T (2404) Chess.com INT 2020}) 13... dxc4 {[%emt 0:15:23]} ({Resist} 13... Bxc5 14. b4 $14) 14. bxc4 {[%emt 0:04:08]} Nxc5 {[%emt 0:03:33]} 15. Bb2 {[%emt 0:03:38]} Qd3 {[%emt 0:16:29]} 16. Qxd3 {[%emt 0:01:34]} Nxd3 {[%emt 0:00:03]} 17. Bc3 {[%emt 0:05:10]} Ne4 {[%emt 0:10:40]} 18. Nxe4 {[%emt 0:01:43]} Bxe4 {[%emt 0:00:07]} 19. Nd2 {[%emt 0:00:58]} (19. Rfd1 $15) 19... Bxg2 {[%emt 0:00:09]} 20. Kxg2 {[%emt 0:00:03]} b5 {[%emt 0:02:25]} 21. Rfd1 {[%emt 0:06:51]} bxc4 {[%emt 0:08:29]} (21... Rfe8 {seems wilder.} 22. Rab1 bxc4 23. Nxc4 Nxf2 24. Re1 Nd3) 22. Nxc4 {[%emt 0:02:30]} Nxf2 $1 {[%emt 0:03:23]} ({But not} 22... Rxc4 23. Rxd3 Rfc8 24. Bd2 $11) 23. Rd7 {[%emt 0:09:54]} Rxc4 {[%emt 0:03:25]} 24. Rxe7 {[%emt 0:00:06]} Rxc3 {[%emt 0:01:39]} 25. Kxf2 $17 {[%emt 0:00:07][%mdl 4096] Endgame KRR-KRR} a5 {[%emt 0:00:22]} 26. Ra7 {[%emt 0:00:08]} Rc2+ {[%emt 0:01:20]} 27. Kg1 {[%emt 0:02:49]} ({White should try} 27. Kf3 $1 $15) 27... Rd8 {[%emt 0:01:52]} 28. Rxa5 {[%emt 0:01:22]} g6 {[%emt 0:00:22]} 29. Ra4 {[%emt 0:00:18]} Rdd2 {[%emt 0:00:21] [#] White must now prevent ...Rg2+.} 30. Rh4 {[%emt 0:00:06]} Ra2 {[%emt 0:02:44]} (30... g5 $17 31. Rh3 Kg7) 31. Rxa2 $11 {[%emt 0:00:22] The position is equal.} Rxa2 {[%emt 0:00:03]} 32. Ra4 {[%emt 0:00:46]} Kg7 {[%emt 0:01:02]} 33. g4 {[%emt 0:00:09]} g5 {[%emt 0:01:12]} 34. Ra6 {[%emt 0:00:10]} f6 {[%emt 0:00:14]} 35. a4 {[%emt 0:00:23]} Kg6 {[%emt 0:00:07]} 36. h3 {[%emt 0:00:23] Weighted Error Value: White=0.16 (very precise) /Black=0.14 (very precise)} 1/2-1/2